Cogmind - Beta 12 X6 @@@ ROGUE MODE // 2023.02.19 @ 13:22:56 Player: kasaphescent Result: Destroyed by H-88 Terminator with KE Penetrator Performance ------------- Evolutions (9) 4500 Regions Visited (13) 2600 Robots Destroyed (11) 55 Value Destroyed (582) 582 Prototype IDs (7) 140 Alien Tech Used (0) 0 Bonus (3880) 3880 TOTAL SCORE: 11757 Bonus ------- Pacifist 2880 Entered DSFs 1000 Cogmind --------- Core Integrity 0/1600 Matter 240/300 Energy 100/100 System Corruption 0% Temperature Cool (1) Movement Flying (40) Location -1/Access Parts ------- > --- POWER (1) -------- (None) > --- PROPULSION (2) --- Field Propulsion Array > --- UTILITY (20) ----- Advanced Signal Interpreter Improved Terrain Scan Processor Advanced Terrain Scan Processor Advanced Terrain Scan Processor Improved Target Analyzer Advanced Target Analyzer Core Analyzer Advanced Corruption Screen > --- WEAPON (2) ------- (None) > --- INVENTORY (5) ---- Field Propulsion Array Improved Q-thruster Peak State ------------ > --- POWER ------------ (None) > --- PROPULSION ------- Xenon Bombardment Thruster Improved Q-thruster > --- UTILITY ---------- Enhanced Optical Array Enhanced Optical Array Advanced Signal Interpreter Advanced Signal Interpreter Improved Terrain Scan Processor Advanced Terrain Scan Processor Advanced Terrain Scan Processor Advanced Terrain Scan Processor Improved Melee Analysis Suite Improved Target Analyzer Core Analyzer Armor Integrity Analyzer Improved Hacking Suite Experimental Hacking Suite Advanced Corruption Screen > --- WEAPON ----------- Advanced KE Penetrator Micro-nuke Launcher > --- INVENTORY -------- Impulse Thruster Impulse Thruster Point Singularity Launcher [Rating: 104] Favorites ----------- Power Micro Fission Core Engine Improved Ion Engine Power Core Micro Fission Core Reactor Micro Antimatter Reactor Propulsion Field Propulsion Drive Flight Unit Field Propulsion Drive Utility Advanced Terrain Scan Processor Device Advanced Sensor Array Processor Advanced Terrain Scan Processor Hackware System Shield Protection Improved Core Shielding Weapon Chainsword Ballistic Gun Advanced KE Penetrator Launcher Point Singularity Launcher Slashing Weapon Chainsword Piercing Weapon Force Lance Build | -11 -10 -9 -9 -8 -7 -7 -6 -5 -4 -3 -3 -2 -1 ------- Run | Jun Mat Mat Min Mat Fac DSF Fac Fac Fac Res DSF Res Acc Slots Evolved 18 | . . 2 . 2 2 . 2 2 2 2 . 2 2 Power . | . . . . . . . . . . . . . . Propulsion . | . . . . . . . . . . . . . . Utility 18 | . . 2 . 2 2 . 2 2 2 2 . 2 2 Weapon . | . . . . . . . . . . . . . . Parts Attached 59 | . 1 . . 4 1 . 2 4 13 6 6 6 16 Power 3 | . . . . . . . . . 2 . . . 1 Engine 1 | . . . . . . . . . 1 . . . . Core 1 | . . . . . . . . . 1 . . . . Reactor 1 | . . . . . . . . . . . . . 1 Propulsion 14 | . 1 . . . . . . 1 2 2 1 2 5 Treads . | . . . . . . . . . . . . . . Leg . | . . . . . . . . . . . . . . Wheel . | . . . . . . . . . . . . . . Hover . | . . . . . . . . . . . . . . Flight 14 | . 1 . . . . . . 1 2 2 1 2 5 Utility 32 | . . . . 4 1 . 2 3 7 4 5 3 3 Device 7 | . . . . . 1 . 1 . 2 3 . . . Storage . | . . . . . . . . . . . . . . Processor 18 | . . . . 2 . . 1 2 3 1 5 1 3 Hackware 6 | . . . . 2 . . . 1 1 . . 2 . Protection 1 | . . . . . . . . . 1 . . . . Artifact . | . . . . . . . . . . . . . . Weapon 10 | . . . . . . . . . 2 . . 1 7 Energy Gun . | . . . . . . . . . . . . . . Energy Cannon . | . . . . . . . . . . . . . . Ballistic Gun 1 | . . . . . . . . . . . . . 1 Ballistic Cannon . | . . . . . . . . . . . . . . Launcher 4 | . . . . . . . . . . . . 1 3 Special Weapon . | . . . . . . . . . . . . . . Impact Weapon . | . . . . . . . . . . . . . . Slashing Weapon 2 | . . . . . . . . . 2 . . . . Piercing Weapon 3 | . . . . . . . . . . . . . 3 Special Melee Weapon . | . . . . . . . . . . . . . . Unidentified Prototypes 7 | . . . . . . . . 1 . 2 . 3 1 Parts Lost 35 | . . . . . . 4 . 1 3 2 2 8 15 Power 3 | . . . . . . . . . 1 . . 1 1 Propulsion 9 | . . . . . . . . 1 1 . 2 1 4 Utility 19 | . . . . . . 4 . . 1 2 . 6 6 Weapon 4 | . . . . . . . . . . . . . 4 Highest Loss Streak 8 | . . . . . . 4 . 1 2 2 2 4 8 To Critical Strikes . | . . . . . . . . . . . . . . Average Slot Usage (%) 53 | . . 11 11 31 42 34 23 29 64 63 68 76 55 Flight 6 | . . 11 11 9 7 7 6 4 9 9 4 5 5 Device 4 | . . . . . 3 5 5 5 5 7 14 7 . Processor 30 | . . . . 11 15 9 10 15 30 26 30 46 41 Hackware 4 | . . . . 10 15 11 . 1 6 4 4 8 2 Protection 1 | . . . . . . . . . 2 4 4 1 . Slashing Weapon 2 | . . . . . . . . . 6 4 4 4 . Naked Turns 50 | . 50 . . . . . . . . . . . . Heaviest Build 14 | . . . . . 1 1 1 1 13 13 13 13 14 Greatest Support 15 | 3 4 4 4 4 4 4 4 6 14 14 13 13 15 Greatest Overweight (x) 1 | . . . . . . . . . 1 1 . 1 1 Average Overweight (x) . | . . . . . . . . . . . . . . Largest Inventory Capacity 5 | 5 5 5 5 5 5 5 5 5 5 5 5 5 5 Average Capacity 5 | 5 5 5 5 5 5 5 5 5 5 5 5 5 5 Most Carried 5 | 2 2 2 2 4 4 5 5 5 5 5 5 5 5 Average Carried 4 | 1 2 2 2 3 4 4 4 4 4 4 3 4 3 Final Capacity 5 | 5 5 5 5 5 5 5 5 5 5 5 5 5 5 Final Carried 5 | 2 2 2 2 4 4 5 5 5 4 5 3 4 3 Class Distribution -------------------- 45% | Mutant 19% | Hacker-Scout 17% | Scout 16% | Hacker-Mutant Dominant Class ---------------- Mutant | -10/Materials Mutant | -9/Materials Mutant | -9/Mines Mutant | -8/Materials Mutant | -7/Factory Mutant | -7/DSF Mutant | -6/Factory Mutant | -5/Factory Scout | -4/Factory Scout | -3/Research Scout | -3/DSF Hacker-Scout | -2/Research Mutant | -1/Access Resources | -11 -10 -9 -9 -8 -7 -7 -6 -5 -4 -3 -3 -2 -1 ----------- Run | Jun Mat Mat Min Mat Fac DSF Fac Fac Fac Res DSF Res Acc Matter Collected 659 | 195 . . 15 . . . . . 165 27 . . 257 Remotely . | . . . . . . . . . . . . . . Salvage Created 483 | . . . . . . . . . 165 27 . . 291 Parts 24 | . . . . . . . . . 9 2 . . 13 Haulers Intercepted 1 | . . . . . . . . . . . . . 1 Recyclers Shooed . | . . . . . . . . . . . . . . Parts Field Recycled . | . . . . . . . . . . . . . . Retrieved Matter . | . . . . . . . . . . . . . . Parts Self-Destructed . | . . . . . . . . . . . . . . Prevented . | . . . . . . . . . . . . . . Kills | -11 -10 -9 -9 -8 -7 -7 -6 -5 -4 -3 -3 -2 -1 ------- Run | Jun Mat Mat Min Mat Fac DSF Fac Fac Fac Res DSF Res Acc Combat Hostiles Destroyed 8 | . . . . . . . . . 2 . . . 6 Melee 6 | . . . . . . . . . 2 . . . 4 AOE 2 | . . . . . . . . . . . . . 2 Classes Destroyed 7 | . . . . . . . . . 2 1 . . 4 Tunneler 1 | . . . . . . . . . . 1 . . . Hauler 1 | . . . . . . . . . . . . . 1 Watcher 1 | . . . . . . . . . 1 . . . . Swarmer 1 | . . . . . . . . . . . . . 1 Cutter 3 | . . . . . . . . . . . . . 3 Sentry 1 | . . . . . . . . . . . . . 1 Programmer 3 | . . . . . . . . . 2 . . . 1 Best Kill Streak 2 | . . . . . . . . . 2 1 . . 2 Combat Bots Only 2 | . . . . . . . . . 2 . . . 2 Max Kills in Single Turn 2 | . . . . . . . . . 1 1 . . 2 Gunslinging . | . . . . . . . . . . . . . . Exploded 2 | . . . . . . . . . . . . . 2 Melee 1 | . . . . . . . . . 1 . . . 1 Uniques/NPCs Destroyed . | . . . . . . . . . . . . . . Combat | -11 -10 -9 -9 -8 -7 -7 -6 -5 -4 -3 -3 -2 -1 -------- Run | Jun Mat Mat Min Mat Fac DSF Fac Fac Fac Res DSF Res Acc Damage Taken 4610 | . 151 17 . 59 . 459 . 99 568 129 65 584 2479 Core 2805 | . 145 17 . 59 . 418 . 76 186 36 . 255 1613 Absorbed by Shields 67 | . . . . . . 67 . . . . . . . Redirected to Shielding 103 | . . . . . . . . . 45 14 . 44 . Core Remaining (%) 82 | 100 42 . 95 89 . 40 100 92 83 . 97 82 . Volleys Fired 3 | . . . . . . . . . . . . . 3 Largest 2 | . . . . . . . . . . . . . 2 Hottest 84 | . . . . . . . . . . . . . 84 Shots Fired 4 | . . . . . . . . . . . . . 4 Gun 1 | . . . . . . . . . . . . . 1 Cannon . | . . . . . . . . . . . . . . Launcher 3 | . . . . . . . . . . . . . 3 Special . | . . . . . . . . . . . . . . Kinetic 1 | . . . . . . . . . . . . . 1 Thermal . | . . . . . . . . . . . . . . Explosive 3 | . . . . . . . . . . . . . 3 Electromagnetic . | . . . . . . . . . . . . . . Robot Hit Streak . | . . . . . . . . . . . . . . Robot Miss Streak 2 | . . . . . . . . . . . . . 2 Penetration Max . | . . . . . . . . . . . . . . Secondary Targets . | . . . . . . . . . . . . . . Shots Hit Robots 36 | . . . . . . . . . 19 2 . . 15 Core Hits 16 | . . . . . . . . . 4 . . . 12 Critical Kills . | . . . . . . . . . . . . . . Critical Parts Destroyed . | . . . . . . . . . . . . . . Critical Strikes 6 | . . . . . . . . . 3 . . . 3 Sever 3 | . . . . . . . . . 3 . . . . Impale 3 | . . . . . . . . . . . . . 3 Melee Attacks 76 | . . . . . . . . . 28 4 . 18 26 Impact . | . . . . . . . . . . . . . . Slashing 54 | . . . . . . . . . 28 4 . 18 4 Piercing 22 | . . . . . . . . . . . . . 22 Sneak Attacks 3 | . . . . . . . . . 1 1 . . 1 Combat Hostiles . | . . . . . . . . . . . . . . Follow-up Attacks 2 | . . . . . . . . . 2 . . . . Damage Inflicted 2171 | . . . . . . . . . 757 108 . . 1306 Guns . | . . . . . . . . . . . . . . Cannons . | . . . . . . . . . . . . . . Explosions 660 | . . . . . . . . . . . . . 660 Melee 1511 | . . . . . . . . . 757 108 . . 646 Ramming . | . . . . . . . . . . . . . . Kinetic . | . . . . . . . . . . . . . . Thermal . | . . . . . . . . . . . . . . Explosive 660 | . . . . . . . . . . . . . 660 Electromagnetic . | . . . . . . . . . . . . . . Impact . | . . . . . . . . . . . . . . Slashing 938 | . . . . . . . . . 757 108 . . 73 Piercing 573 | . . . . . . . . . . . . . 573 Highest Corruption 8 | . . . . . . . . 1 . 8 8 1 . Average Corruption 5 | . . . . . . . . 1 . 8 8 1 . Corruption Purged . | . . . . . . . . . . . . . . Corruption Blocked 10 | . . . . . . . . . 4 . . . 6 Effects 3 | . . . . . . . . . . 2 1 . . Matter Fused 2 | . . . . . . . . . . 2 . . . Data Loss (minor) 1 | . . . . . . . . . . . 1 . . Overload Shots . | . . . . . . . . . . . . . . Overflow Damage 234 | . . . . . . . . . 33 38 . . 163 Projectiles . | . . . . . . . . . . . . . . Explosions 46 | . . . . . . . . . . . . . 46 Melee 188 | . . . . . . . . . 33 38 . . 117 Knockbacks . | . . . . . . . . . . . . . . Impact . | . . . . . . . . . . . . . . Kinetic . | . . . . . . . . . . . . . . Secondary . | . . . . . . . . . . . . . . Self-Inflicted Damage 192 | . . . . . . . . . . . . . 192 Shots 2 | . . . . . . . . . . . . . 2 Rammed . | . . . . . . . . . . . . . . Targets Rammed . | . . . . . . . . . . . . . . Kicked . | . . . . . . . . . . . . . . Crushed . | . . . . . . . . . . . . . . Highest Temperature 420 | . . . . . . . . . . 420 . . . Average Temperature 207 | . . . . . . . . . . 207 . . . Received Heat Transfer 222 | . 42 . . 9 . . . 18 18 . . 63 72 Siege Activations . | . . . . . . . . . . . . . . Robots Corrupted . | . . . . . . . . . . . . . . Combat Hostiles . | . . . . . . . . . . . . . . Parts Fried . | . . . . . . . . . . . . . . Impact Corruptions . | . . . . . . . . . . . . . . Robots Melted . | . . . . . . . . . . . . . . Combat Hostiles . | . . . . . . . . . . . . . . Parts Melted . | . . . . . . . . . . . . . . Heat Transferred . | . . . . . . . . . . . . . . Parts Sabotaged . | . . . . . . . . . . . . . . Parts Stolen . | . . . . . . . . . . . . . . Parts Stripped . | . . . . . . . . . . . . . . Power Chain Reactions . | . . . . . . . . . . . . . . Missiles Intercepted . | . . . . . . . . . . . . . . Alert | -11 -10 -9 -9 -8 -7 -7 -6 -5 -4 -3 -3 -2 -1 ------- Run | Jun Mat Mat Min Mat Fac DSF Fac Fac Fac Res DSF Res Acc Peak Influence 399 | . 4 31 23 61 20 37 8 47 297 35 15 317 399 Initial 31 | . . 1 23 8 20 17 3 3 22 31 15 8 12 Average 110 | . 2 6 23 25 20 17 7 13 169 22 10 84 232 Maximum Alert Level 1 | . . . . . . . . . 1 . . 1 1 Low Security (%) 70 | 100 100 100 100 100 100 100 100 100 48 100 100 88 26 Level 1 29 | . . . . . . . . . 51 . . 11 73 Level 2 . | . . . . . . . . . . . . . . Level 3 . | . . . . . . . . . . . . . . Level 4 . | . . . . . . . . . . . . . . Level 5 . | . . . . . . . . . . . . . . High Security . | . . . . . . . . . . . . . . Max Security . | . . . . . . . . . . . . . . Squads Dispatched 21 | . 1 . . 1 . 1 1 3 4 . 1 5 4 Investigation 7 | . . . . 1 . . 1 2 1 . . 1 1 Extermination 2 | . . . . . . . . . 1 . . 1 . Reinforcement 12 | . 1 . . . . 1 . 1 2 . 1 3 3 Assault . | . . . . . . . . . . . . . . Garrison . | . . . . . . . . . . . . . . Intercept . | . . . . . . . . . . . . . . Searches Triggered . | . . . . . . . . . . . . . . Construction Impeded 1 | . . . . . . . . . . . . 1 . Haulers Reinforced 1 | . . . . . . . . . 1 . . . . Active Scanning Responses . | . . . . . . . . . . . . . . Cargo Convoy Interrupts . | . . . . . . . . . . . . . . Stealth | -11 -10 -9 -9 -8 -7 -7 -6 -5 -4 -3 -3 -2 -1 --------- Run | Jun Mat Mat Min Mat Fac DSF Fac Fac Fac Res DSF Res Acc Distress Signals 9 | . . . . . . . . . 2 . . 3 4 Communications Jammed . | . . . . . . . . . . . . . . Distress Signals . | . . . . . . . . . . . . . . Times Spotted 133 | . 8 9 3 10 . 4 . 3 22 . 1 24 49 Peak Tracking Total 22 | . 7 9 3 9 . 3 . 3 9 . 1 12 22 Tactical Retreats 24 | . . 1 . 1 . 1 . 1 5 . 1 7 7 Traps | -11 -10 -9 -9 -8 -7 -7 -6 -5 -4 -3 -3 -2 -1 ------- Run | Jun Mat Mat Min Mat Fac DSF Fac Fac Fac Res DSF Res Acc Traps Triggered 4 | . . . . . . 1 . 1 . . 1 1 . Indirectly . | . . . . . . . . . . . . . . Trap Hack Attempts . | . . . . . . . . . . . . . . Triggered . | . . . . . . . . . . . . . . Disarmed . | . . . . . . . . . . . . . . Reprogrammed . | . . . . . . . . . . . . . . Reused . | . . . . . . . . . . . . . . Traps Extracted . | . . . . . . . . . . . . . . Installed . | . . . . . . . . . . . . . . Triggered . | . . . . . . . . . . . . . . Machines | -11 -10 -9 -9 -8 -7 -7 -6 -5 -4 -3 -3 -2 -1 ---------- Run | Jun Mat Mat Min Mat Fac DSF Fac Fac Fac Res DSF Res Acc Machines Disabled 1 | . . . . . . . . . . . . . 1 Max in Single Turn 1 | . . . . . . . . . . . . . 1 Garrison Access 2 | . . . . . . . . . . . . 1 1 Machines Repaired . | . . . . . . . . . . . . . . Machines Sabotaged . | . . . . . . . . . . . . . . Overloaded Fab Kills . | . . . . . . . . . . . . . . Hacking | -11 -10 -9 -9 -8 -7 -7 -6 -5 -4 -3 -3 -2 -1 --------- Run | Jun Mat Mat Min Mat Fac DSF Fac Fac Fac Res DSF Res Acc Machines Accessed 42 | . 1 . . 3 2 . 3 3 9 1 . 8 12 Terminals 25 | . 1 . . 3 2 . 2 2 3 1 . 5 6 Fabricators 8 | . . . . . . . . . 4 . . 2 2 Repair Stations . | . . . . . . . . . . . . . . Recycling Units 3 | . . . . . . . 1 . 1 . . . 1 Scanalyzers . | . . . . . . . . . . . . . . Garrison Access 6 | . . . . . . . . 1 1 . . 1 3 Total Hacks 97 | . 2 . . 10 3 . 7 8 26 2 . 16 23 Successful 27 | . 2 . . 3 2 . 1 2 8 1 . 4 4 Failed 70 | . . . . 7 1 . 6 6 18 1 . 12 19 Catastrophic 12 | . . . . 1 . . 3 1 2 . . 1 4 Database Lockouts . | . . . . . . . . . . . . . . Manual 31 | . . . . 8 . . 2 2 11 . . 2 6 Terminals 58 | . 2 . . 10 3 . 3 4 11 2 . 11 12 Fabricators 18 | . . . . . . . . . 10 . . 4 4 Repair Stations . | . . . . . . . . . . . . . . Recycling Units 7 | . . . . . . . 4 . 1 . . . 2 Scanalyzers . | . . . . . . . . . . . . . . Garrison Access 14 | . . . . . . . . 4 4 . . 1 5 Terminal Hacks 14 | . 2 . . 2 2 . 1 1 2 1 . 3 . Record 1 | . . . . . . . . 1 . . . . . Robot Analysis 1 | . . . . . 1 . . . . . . . . Open DSF 3 | . . . . . 1 . 1 . . 1 . . . Level Access Points 1 | . . . . . . . . . . . . 1 . Branch Access Points 1 | . . . . 1 . . . . . . . . . Emergency Access Points 1 | . 1 . . . . . . . . . . . . Unreport Threat 5 | . . . . 1 . . . . 2 . . 2 . Locate Traps 1 | . 1 . . . . . . . . . . . . Fabricator Hacks 1 | . . . . . . . . . 1 . . . . Network Status 1 | . . . . . . . . . 1 . . . . Repair Station Hacks . | . . . . . . . . . . . . . . Recycling Unit Hacks 2 | . . . . . . . . . 1 . . . 1 Report Inventory 2 | . . . . . . . . . 1 . . . 1 Scanalyzer . | . . . . . . . . . . . . . . Garrison Access Hacks 2 | . . . . . . . . . . . . 1 1 Seal Access 2 | . . . . . . . . . . . . 1 1 Unauthorized Hacks 8 | . . . . 1 . . . 1 4 . . . 2 Terminals 6 | . . . . 1 . . . 1 2 . . . 2 Botnet 6 | . . . . 1 . . . 1 2 . . . 2 Fabricators 2 | . . . . . . . . . 2 . . . . Fabnet 2 | . . . . . . . . . 2 . . . . Repair Stations . | . . . . . . . . . . . . . . Recycling Units . | . . . . . . . . . . . . . . Scanalyzers . | . . . . . . . . . . . . . . Garrison Access . | . . . . . . . . . . . . . . Data Cores Recovered . | . . . . . . . . . . . . . . Used . | . . . . . . . . . . . . . . Hacking Detections 36 | . . . . 3 . . 2 3 9 1 . 7 11 Full Trace Events 6 | . . . . 1 . . 1 1 1 . . 1 1 Feedback Events 1 | . . . . . . . . 1 . . . . . Corruption 1 | . . . . . . . . 1 . . . . . Feedback Blocked . | . . . . . . . . . . . . . . Robot Schematics Acquired . | . . . . . . . . . . . . . . Robots Built . | . . . . . . . . . . . . . . Authchips . | . . . . . . . . . . . . . . Time . | . . . . . . . . . . . . . . Total Robot Build Rating . | . . . . . . . . . . . . . . Part Schematics Acquired . | . . . . . . . . . . . . . . Parts Built . | . . . . . . . . . . . . . . Authchips . | . . . . . . . . . . . . . . Time . | . . . . . . . . . . . . . . Total Part Build Rating . | . . . . . . . . . . . . . . Parts Repaired . | . . . . . . . . . . . . . . Time . | . . . . . . . . . . . . . . Parts Recycled . | . . . . . . . . . . . . . . Recycled Matter . | . . . . . . . . . . . . . . Retrieved Matter . | . . . . . . . . . . . . . . Retrieved Components . | . . . . . . . . . . . . . . Parts Scanalyzed . | . . . . . . . . . . . . . . Part Schematics Acquired . | . . . . . . . . . . . . . . Parts Damaged . | . . . . . . . . . . . . . . Bothacking | -11 -10 -9 -9 -8 -7 -7 -6 -5 -4 -3 -3 -2 -1 ------------ Run | Jun Mat Mat Min Mat Fac DSF Fac Fac Fac Res DSF Res Acc Used RIF Installer . | . . . . . . . . . . . . . . Robots Hacked 1 | . . . . . . . . . . . . 1 . Non-combat . | . . . . . . . . . . . . . . Combat 1 | . . . . . . . . . . . . 1 . Robot Hacks Applied . | . . . . . . . . . . . . . . Relay Couplers Released . | . . . . . . . . . . . . . . Fabnet Peak Effective % 6 | . . . . . . . . . . 6 6 2 . Autooverrided 1 | . . . . . . . . . . . . 1 . Robots Rewired 1 | . . . . . . . . 1 . . . . . Allies Hacked . | . . . . . . . . . . . . . . Hacks Repelled . | . . . . . . . . . . . . . . Allies | -11 -10 -9 -9 -8 -7 -7 -6 -5 -4 -3 -3 -2 -1 -------- Run | Jun Mat Mat Min Mat Fac DSF Fac Fac Fac Res DSF Res Acc Total Allies 2 | . . . . . . . . 1 . . . 1 . Largest Group 1 | . . . . . . . . 1 . . . 1 . Highest-Rated Group 69 | . . . . . . . . 30 . . . 69 . Highest-Rated Ally 69 | . . . . . . . . 30 . . . 69 . Total Orders . | . . . . . . . . . . . . . . Ally Attacks 3 | . . . . . . . . . . . . 3 . Total Damage 156 | . . . . . . . . . . . . 156 . Kills 2 | . . . . . . . . . . . . 2 . Allies Corrupted . | . . . . . . . . . . . . . . Allies Melted . | . . . . . . . . . . . . . . Intel | -11 -10 -9 -9 -8 -7 -7 -6 -5 -4 -3 -3 -2 -1 ------- Run | Jun Mat Mat Min Mat Fac DSF Fac Fac Fac Res DSF Res Acc Robot Analysis Total 1 | . . . . . 1 . . . . . . . . Derelict Logs Recovered . | . . . . . . . . . . . . . . Drone Launches . | . . . . . . . . . . . . . . Drone Recoveries . | . . . . . . . . . . . . . . Exploration | -11 -10 -9 -9 -8 -7 -7 -6 -5 -4 -3 -3 -2 -1 ------------- Run | Jun Mat Mat Min Mat Fac DSF Fac Fac Fac Res DSF Res Acc Turns Passed 2215 | 19 59 65 11 107 23 41 150 179 430 75 56 479 521 Spaces Moved 4287 | 35 105 163 28 227 53 59 365 374 779 127 75 956 941 Core 158 | 35 85 . . . . . . 17 . . . 2 19 Treads . | . . . . . . . . . . . . . . Legs . | . . . . . . . . . . . . . . Wheels . | . . . . . . . . . . . . . . Hover . | . . . . . . . . . . . . . . Flight 4129 | . 20 163 28 227 53 59 365 357 779 127 75 954 922 Fastest Speed 34 | 50 40 40 40 40 40 40 40 35 35 39 39 35 34 Average Speed 38 | 50 48 40 40 40 40 40 40 37 37 41 39 38 36 Slowest Speed 125 | 50 50 40 40 40 40 40 40 50 125 125 40 50 100 Overloaded Moves . | . . . . . . . . . . . . . . Propulsion Burnouts . | . . . . . . . . . . . . . . Robots Hopped 50 | . 1 . 1 2 . 1 2 9 7 . . 13 14 Cave-ins Triggered 1 | . . . . . . . . . . 1 . . . Exploration Rate (%) 25 | 4 27 18 8 31 2 60 10 13 30 5 78 39 31 Regions Visited 13 Branch Regions 1 Pre-discovered Areas . | . . . . . . . . . . . . . . Known Exits Taken 7 | . . . . 1 1 . 1 1 1 1 . 1 . Unknown Exits Taken 4 | 1 1 1 1 . . . . . . . . . . Scrap Searched 1 | . . . 1 . . . . . . . . . . Spaces Dug 23 | . . . . . . . . . 5 2 . 16 . Terrain Destroyed 67 | . . . . . . . . . 5 2 . 16 44 Melee 23 | . . . . . . . . . 5 2 . 16 . Projectile . | . . . . . . . . . . . . . . AOE 44 | . . . . . . . . . . . . . 44 Terrain Rammed . | . . . . . . . . . . . . . . Walls Destroyed . | . . . . . . . . . . . . . . Machines Disabled . | . . . . . . . . . . . . . . Actions | -11 -10 -9 -9 -8 -7 -7 -6 -5 -4 -3 -3 -2 -1 --------- Run | Jun Mat Mat Min Mat Fac DSF Fac Fac Fac Res DSF Res Acc Total 4650 | 36 111 162 26 239 53 75 365 402 868 141 98 1028 1046 Wait 196 | . 7 . . 7 . 9 . 15 48 . . 42 68 Move 4178 | 34 102 162 25 222 52 56 360 358 765 126 74 929 913 Hop 46 | . 1 . 1 2 . 1 2 6 6 . . 13 14 Pick Up 21 | 2 . . . 3 . 2 1 1 4 2 . 3 3 Fast Attach 45 | . 1 . . 4 1 . 1 4 10 5 5 4 10 Attach 13 | . . . . . . . 1 . 3 . 1 2 6 Detach 4 | . . . . . . . . . 1 . . 1 2 Swap 1 | . . . . . . . . . . 1 . . . Drop 14 | . . . . 1 . 1 . 1 6 3 . 1 1 Fire 3 | . . . . . . . . . . . . . 3 Melee 73 | . . . . . . . . . 25 4 . 18 26 Ram . | . . . . . . . . . . . . . . Kick . | . . . . . . . . . . . . . . Crush . | . . . . . . . . . . . . . . Escape Stasis 39 | . . . . . . 6 . . . . 18 15 . Rewire 17 | . . . . . . . . 17 . . . . . Trap . | . . . . . . . . . . . . . . Miscellaneous . | . . . . . . . . . . . . . . Route ------- -11/Junkyard -10/Materials -9/Materials -9/Mines -8/Materials -7/Factory -7/DSF -6/Factory (discovered 2 exits: *Fac x2) -5/Factory -4/Factory -3/Research -3/DSF -2/Research (discovered 4 exits: *Acc x3 / *Qua) -1/Access History --------- Turn | Location | Event 5 | -11/Junkyard | Discovered new exit (range 16) 20 | -11/Junkyard | Entered Materials 69 | -10/Materials | Core integrity fell below 50% 77 | -10/Materials | Discovered new exit (range 5) 79 | -10/Materials | Entered another Materials area 79 | -9/Materials | Evolved 2 slots: Utility x2 135 | -9/Materials | Discovered new exit (range 12) 144 | -9/Materials | Entered Mines 152 | -9/Mines | Discovered new exit (range 7) 155 | -9/Mines | Entered Materials 155 | -8/Materials | Evolved 2 slots: Utility x2 245 | -8/Materials | Discovered new exit (range 16) 262 | -8/Materials | Identified exit to Factory 262 | -8/Materials | Entered Factory 262 | -7/Factory | Evolved 2 slots: Utility x2 285 | -7/Factory | Identified exit to DSF 285 | -7/Factory | Entered DSF 306 | -7/DSF | Additional patrols routed to DSF 320 | -7/DSF | Discovered new exit (range 16) 321 | -7/DSF | Core integrity fell below 50% 326 | -7/DSF | Identified exit to Factory 326 | -7/DSF | Entered Factory 326 | -6/Factory | Evolved 2 slots: Utility x2 349 | -6/Factory | Lost 4 parts (4u) 416 | -6/Factory | Discovered new exit (range 15) 422 | -6/Factory | Identified exit to Factory 442 | -6/Factory | Discovered exit to Factory (range 6) 476 | -6/Factory | Entered another Factory area 476 | -5/Factory | Evolved 2 slots: Utility x2 609 | -5/Factory | Build established: Mutant 638 | -5/Factory | Discovered new exit (range 12) 643 | -5/Factory | Identified exit to Factory 655 | -5/Factory | Entered another Factory area 655 | -4/Factory | Evolved 2 slots: Utility x2 695 | -4/Factory | Spotted B-86 Titan 1029 | -4/Factory | Spotted B-86 Titan 1079 | -4/Factory | Discovered new exit (range 16) 1085 | -4/Factory | Identified exit to Research 1085 | -4/Factory | Entered Research 1085 | -3/Research | Evolved 2 slots: Utility x2 1108 | -3/Research | Crushed by falling debris 1160 | -3/Research | Identified exit to DSF 1160 | -3/Research | Entered DSF 1178 | -3/DSF | Discovered new exit (range 21) 1184 | -3/DSF | Additional patrols routed to DSF 1205 | -3/DSF | Identified exit to Research 1216 | -3/DSF | Entered Research 1216 | -2/Research | Evolved 2 slots: Utility x2 1225 | -2/Research | Found Prototype Hackware 1225 | -2/Research | Identified Exp. Hacking Suite 1356 | -2/Research | Discovered new exit (range 13) 1371 | -2/Research | Identified exit to Quarantine 1443 | -2/Research | Lost 3 parts (1p2u) 1580 | -2/Research | Lost 4 parts (1n3u) 1586 | -2/Research | Found Prototype Launcher 1586 | -2/Research | Identified Point Singularity Launcher 1612 | -2/Research | Identified exit to Access 1695 | -2/Research | Entered Access 1695 | -1/Access | Evolved 2 slots: Utility x2 1841 | -1/Access | Found Enh. Force Lance 1887 | -1/Access | Lost 8 parts (2n4u2w) 1913 | -1/Access | Core integrity fell below 50% 2053 | -1/Access | Spotted B-99 Colossus 2183 | -1/Access | Core integrity fell below 20% 2216 | -1/Access | Destroyed by H-88 Terminator with KE Penetrator Last Messages --------------- 02173_ W-44 Eye sends out distress signal. 02174_ Impulse Thruster destroyed. 02184_ Adv. Terrain Scan Processor destroyed. 02188_ U-05 Engineer builds a Door. 02207_ K-01 Serf cleans the Wave Collapse Detector. 02208_ K-01 Serf cleans the Garrison Access. 02209_ Force Lance destroyed. 02209_ Adv. Corruption Screen intercepted 3% system corruption. 02209_ Knocked back. 02209_ K-01 Serf destroyed. 02211_ Penetrated by Slug. 02211_ Slug penetrates Wall. 02211_ Penetrated by Slug. 02211_ Slug penetrates Wall. 02213_ Slug penetrates C-57 Dissector. 02213_ K-01 Serf collects debris. 02214_ Mic. Antimatter Reactor destroyed. 02214_ Penetrated by Slug. 02216_ Enh. Optical Array severed. 02216_ Slug penetrates Wall. Map ----- +----------------------------------------------------+ | ???# #### # # [ #??????# | | ??# + # # #??????# | | #?# #### # # #??????######### | | #?# ############ ########+#####??????????????? | | #?# # * #???????????????????????????? | | ### % #??###???#??????????????????? | | + != = ### #?? #??????????????????? | | ### =%* #" ### ###????????????????? | | ##?# ""G"" #????????????????? | | ?### " " #????????????????? | | ?# " " +????????????????? | | ?# ^ " #????????????????? | | ?# """ #????????????????? | | ## """ #????????????????? | | ## " #????????????????? | | ## #????????????????? | | + #????????????????? | | #####+##### h#????????????????? | | #?????????# o !! ##########???????? | | #?????????##"#### c !! h w ????????? | | #??????????###### * ! #???????????? | | #??????????# c #???????????? | | #??????????# g c ###+##???????????? | | ???????????# #????????????????? | | ???????????# g #????????????????? | | ???????????# g ] c @ +????????????????? | | ???"T % #######????????????????? | | ?? ##################;#??????????????????????? | | ????????????????????????###??????????????????????? | | ?????????????????????????????????????????????????? | | ?????????????????????????????????????????????????? | | | | | | | | | | | | | | | | | | | | | | | | | | | | | | | | | | | | | | | +----------------------------------------------------+ Best States ------------- Heat Dissipation 52 Energy Generation 19 Energy Capacity 265 Matter Stores 300 Matter Capacity 300 Sight Range 22 Robot Scan Range 16 Terrain Scan Range 16 Terrain Scan Density 910 Corruption Block 20 Core Shielding 30 Evasion (%) 63 Melee Accuracy 6 Target Analysis 11 Core Analysis 6 Armor Integrity Analysis 30 Energy Filtering 30 Offensive Hacking 28 Defensive Hacking 20 Authchip Count 2 Item Schematics ----------------- None Robot Schematics ------------------ None Fabricated ------------ Nothing Alien Tech Used ----------------- None Achievements -------------- None Challenges ------------ None Game ------ Seed SensorRemoteWeb Manual? 0 Play Time 00:44:16 Cumulative 306.1 hours Start 2023.02.19 @ 12:40:39 End 2023.02.19 @ 13:22:56 Sessions 1 Manual Loads 0 Difficulty Rogue Special Mode None Game No. 207 Rogue 207 Adventurer 0 Explorer 0 Win Type - Total 18 Types 15/0/2/1/0/0/0/0/0 Lore% 68 Gallery% 84 Achievement% 65 Wizard Run 0 Options --------- ASCII 0 Keyboard 1 Movement Numpad Keybinds 0 Fullscreen 2 Font 18/SmallcapsGlow Map View 76x50 Tactical HUD 1 Map Filters NONE Filters NONE Steam 1 RUN: f37740ac-ea6d-4d3f-8d68-38c9157c6723